fUSD/lending_fUSD_20251225
["ID","MTS","AMOUNT","RATE_DAILY","PERIOD"]
[399826203,1766705441031,-150.0,0.00016137,2]
[399826204,1766705441041,-150.0,0.00016137,2]
[399826205,1766705441051,-150.0,0.00016137,2]
[399826206,1766705441061,-150.0,0.00016137,2]
[399826207,1766705441074,-150.0,0.00016137,2]
[399826208,1766705441083,-150.0,0.00016137,2]
[399826209,1766705441100,-150.0,0.00016137,2]
[399826210,1766705441111,-150.0,0.00016137,2]
[399826211,1766705441121,-1290.04665757,0.00016149,2]
[399826212,1766705441131,-740.14339318,0.00016149,2]
[399826213,1766705441141,-188.4651769,0.00016149,2]
[399826214,1766705441153,-322.6107,0.00016149,2]
[399826215,1766705441163,-1500.0,0.00016149,2]
[399826216,1766705441174,-163.99770421,0.00016149,2]
[399826217,1766705441184,-574.12855637,0.00016149,2]
[399826218,1766705441195,-500.0,0.00016149,2]
[399826219,1766705441205,-1500.0,0.00016149,2]
[399826220,1766705441215,-500.0,0.00016149,2]
[399826221,1766705441225,-1500.0,0.00016149,2]
[399826222,1766705441235,-500.0,0.00016149,2]
[399826223,1766705441245,-1500.0,0.00016149,2]
[399826224,1766705441255,-500.0,0.00016149,2]
[399826225,1766705441265,-1500.0,0.00016149,2]
[399826226,1766705441275,-500.0,0.00016149,2]
[399826227,1766705441285,-1500.0,0.00016149,2]
[399826228,1766705441295,-620.0,0.00016149,2]
[399826229,1766705441305,-500.0,0.00016149,2]
[399826230,1766705441316,-721.12765535,0.00016149,2]
[399826231,1766705441326,-1051.9805281,0.00016149,2]
[399826232,1766705441337,-500.0,0.00016149,2]
[399826233,1766705441346,-500.0,0.00016149,2]
[399826234,1766705441356,-500.0,0.00016149,2]
[399826235,1766705441366,-500.0,0.00016149,2]
[399826236,1766705441375,-500.0,0.00016149,2]
[399826237,1766705441386,-500.0,0.00016149,2]
[399826238,1766705441396,-200.0,0.00016149,2]
[399826239,1766705441406,-500.0,0.00016149,2]
[399826240,1766705441416,-207.4,0.00016149,2]
[399826241,1766705441426,-500.0,0.00016149,2]
[399826242,1766705441436,-215.0738,0.00016149,2]
[399826243,1766705441445,-500.0,0.00016149,2]
[399826244,1766705441460,-223.0315306,0.00016149,2]
[399826245,1766705441470,-500.0,0.00016149,2]
[399826246,1766705441480,-231.28369723,0.00016149,2]
[399826247,1766705441490,-500.0,0.00016149,2]
[399826248,1766705441500,-239.84119403,0.00016149,2]
[399826249,1766705441510,-500.0,0.00016149,2]
[399826250,1766705441520,-248.71531821,0.00016149,2]
[399826251,1766705441530,-500.0,0.00016149,2]
[399826252,1766705441539,-250.0,0.00016149,2]
[399826253,1766705441549,-257.91778498,0.00016149,2]
[399826254,1766705441559,-500.0,0.00016149,2]
[399826255,1766705441569,-250.0,0.00016149,2]
[399826256,1766705441579,-267.46074303,0.00016149,2]
[399826257,1766705441589,-500.0,0.00016149,2]
[399826258,1766705441599,-250.0,0.00016149,2]
[399826259,1766705441609,-277.35679052,0.00016149,2]
[399826260,1766705441619,-500.0,0.00016149,2]
[399826261,1766705441630,-250.0,0.00016149,2]
[399826262,1766705441640,-250.0,0.00016149,2]
[399826263,1766705441651,-250.0,0.00016149,2]
[399826264,1766705441661,-250.0,0.00016149,2]
[399826265,1766705441671,-250.0,0.00016149,2]
[399826266,1766705441681,-250.0,0.00016149,2]
[399826267,1766705441690,-250.0,0.00016149,2]
[399826268,1766705441701,-250.0,0.00016149,2]
[399826269,1766705441711,-250.0,0.00016149,2]
[399826270,1766705441721,-311.64066109,0.00016149,2]
[399826271,1766705441731,-250.0,0.00016149,2]
[399826272,1766705441741,-250.0,0.00016149,2]
[399826273,1766705441752,-250.0,0.00016149,2]
[399826274,1766705441762,-260.99352058,0.00016149,2]
[399826275,1766705441772,-578.20924308,0.00016149,2]
[399826276,1766705441783,-151.0,0.00016149,2]
[399826277,1766705441793,-150.0,0.0001615,2]
[399826278,1766705442085,-150.0,0.00016161,2]
[399826279,1766705442095,-150.0,0.00016171,2]
[399826280,1766705442106,-150.0,0.00016176,2]
[399826281,1766705442116,-740.93,0.00016183,2]
[399826282,1766705442129,-162.37211428,0.00016183,2]
[399826283,1766705442140,-500.0,0.00016183,2]
[399826284,1766705442152,-500.0,0.00016183,2]
[399826285,1766705442162,-500.0,0.00016183,2]
[399826286,1766705442172,-500.0,0.00016183,2]
[399826287,1766705442182,-284.26223188,0.00016183,2]
[399826288,1766705442192,-500.0,0.00016183,2]
[399826289,1766705442202,-501.99535785,0.00016183,2]
[399826290,1766705442212,-500.0,0.00016183,2]
[399826291,1766705442222,-500.0,0.00016183,2]
[399826292,1766705442232,-500.0,0.00016183,2]
[399826293,1766705442242,-500.0,0.00016183,2]
[399826294,1766705442252,-500.0,0.00016183,2]
[399826295,1766705442261,-500.0,0.00016183,2]
[399826296,1766705442271,-510.66155099,0.00016183,2]
[399826297,1766705442281,-500.0,0.00016183,2]
[399826298,1766705442290,-230.84233683,0.00016183,2]
[399826299,1766705442300,-333.70058283,0.00016183,2]
[399826300,1766705442310,-500.0,0.00016183,2]
[399826301,1766705442320,-452.51812449,0.00016183,2]
[399826302,1766705442333,-160.29041282,0.00016183,2]
[399826303,1766705442343,-426.91447137,0.00016183,2]
[399826304,1766705442352,-177.58211641,0.00016183,2]
[399826305,1766705442362,-500.77244015,0.00016183,2]
[399826306,1766705442371,-500.0,0.00016183,2]
[399826307,1766705442381,-160.28784744,0.00016183,2]
[399826308,1766705442390,-500.0,0.00016183,2]
[399826309,1766705442401,-500.0,0.00016183,2]
[399826310,1766705442410,-500.0,0.00016183,2]
[399826311,1766705442420,-500.0,0.00016183,2]
[399826312,1766705442430,-500.0,0.00016183,2]
[399826313,1766705442440,-500.0,0.00016183,2]
[399826314,1766705442450,-500.0,0.00016183,2]
[399826315,1766705442460,-500.0,0.00016183,2]
[399826316,1766705442469,-500.0,0.00016183,2]
[399826317,1766705442479,-500.0,0.00016183,2]
[399826318,1766705442488,-500.0,0.00016183,2]
[399826319,1766705442498,-500.0,0.00016183,2]
[399826320,1766705442508,-500.0,0.00016183,2]
[399826321,1766705442519,-500.0,0.00016183,2]
[399826322,1766705442528,-500.0,0.00016183,2]
[399826323,1766705442538,-500.0,0.00016183,2]
[399826324,1766705442547,-543.24024385,0.00016183,2]
[399826325,1766705442557,-500.0,0.00016183,2]
[399826326,1766705442567,-500.0,0.00016183,2]
[399826327,1766705442577,-500.0,0.00016183,2]
[399826328,1766705442587,-500.0,0.00016183,2]
[399826329,1766705442597,-500.0,0.00016183,2]
[399826330,1766705442606,-150.0,0.0001619,2]
[399826331,1766705442616,-150.0,0.00016194,2]
[399826332,1766705442627,-150.0,0.00016198,2]
[399826333,1766705442637,-50504.94804679,0.000162,5]
[399826334,1766705442649,-1098.0,0.00016201,2]
[399826335,1766705442660,-150.0,0.00016202,2]
[399826336,1766705442670,-150.0,0.00016205,2]
[399826337,1766705442680,-150.0,0.0001621,2]
[399826338,1766705442690,-150.0,0.00016228,2]
[399826339,1766705442700,-150.0,0.00016231,2]
[399826340,1766705442710,-511.74539998,0.00016234,2]
[399826341,1766705442719,-150.0,0.00016239,2]
[399826342,1766705442730,-150.0,0.00016243,2]
[399826343,1766705442740,-150.0,0.0001625,2]
[399826344,1766705442751,-150.0,0.00016255,2]
[399826345,1766705442761,-150.0,0.00016258,2]
[399826346,1766705442770,-150.0,0.00016258,2]
[399826347,1766705442780,-7112.0,0.00016268,2]
[399826348,1766705442790,-150.0,0.00016273,2]
[399826349,1766705442800,-150.0,0.00016279,2]
[399826350,1766705442810,-150.0,0.00016281,2]
[399826351,1766705442820,-150.0,0.00016296,2]
[399826352,1766705442830,-150.0,0.00016307,2]
[399826353,1766705442841,-150.0,0.00016307,2]
[399826354,1766705442851,-150.0,0.00016307,2]
[399826355,1766705442860,-150.0,0.00016307,2]
[399826356,1766705442870,-150.0,0.00016307,2]
[399826357,1766705442881,-296.64750393,0.00016317,2]
[399826358,1766705442891,-150.0,0.00016319,2]
[399826359,1766705442903,-150.0,0.00016333,2]
[399826360,1766705442913,-152.00479197,0.00016341,2]
[399826361,1766705442922,-150.0,0.00016341,2]
[399826362,1766705442932,-150.0,0.00016349,2]
[399826363,1766705442941,-150.0,0.00016355,2]
[399826364,1766705442950,-150.0,0.00016359,2]
[399826365,1766705442960,-150.0,0.00016363,2]
[399826366,1766705442969,-150.0,0.00016375,2]
[399826367,1766705442979,-150.0,0.0001638,2]
[399826368,1766705442988,-15583.19360633,0.00016382,2]
[399826369,1766705442997,-150.0,0.00016385,2]
[399826370,1766705443007,-150.0,0.00016402,2]
[399826371,1766705443016,-150.0,0.00016404,2]
[399826372,1766705443026,-150.0,0.00016409,2]
[399826373,1766705443038,-150.0,0.00016411,2]
[399826375,1766705443048,-150.0,0.0001642,2]
[399826377,1766705443057,-150.0,0.0001642,2]
[399826379,1766705443067,-150.0,0.0001642,2]
[399826380,1766705443077,-150.0,0.0001642,2]
[399826381,1766705443086,-5117.0,0.00016422,2]
[399826382,1766705443096,-150.0,0.00016438,2]
[399826383,1766705443105,-500.0,0.00016438,2]
[399826384,1766705443115,-500.0,0.00016438,2]
[399826385,1766705443125,-500.0,0.00016438,2]
[399826386,1766705443135,-351.62076977,0.00016438,2]
[399826387,1766705443145,-205.73564108,0.00016438,2]
[399826388,1766705443156,-4083.3,0.00016438,2]
[399826389,1766705443166,-630.56,0.00016438,2]
[399826390,1766705443176,-165.856431,0.00016438,2]
[399826391,1766705443186,-165.856431,0.00016438,2]
[399826392,1766705443195,-150.0,0.0001644,2]
[399826393,1766705443204,-150.0,0.00016443,2]
[399826394,1766705443214,-150.0,0.00016452,2]
[399826395,1766705443224,-150.0,0.00016455,2]
[399826396,1766705443234,-740.93,0.00016457,2]
[399826397,1766705443244,-150.0,0.00016464,2]
[399826398,1766705443254,-408.56,0.00016465,2]
[399826399,1766705443264,-252.86139171,0.00016475,2]
[399826401,1766705443274,-150.0,0.00016477,2]
[399826403,1766705443285,-150.0,0.00016477,2]
[399826405,1766705443294,-150.0,0.00016477,2]
[399826406,1766705443304,-337.0,0.00016488,2]
[399826408,1766705443313,-150.0,0.0001649,2]
[399826409,1766705443323,-1066.23748014,0.00016501,2]
[399826410,1766705443333,-150.0,0.00016501,2]
[399826411,1766705443342,-150.0,0.00016501,2]
[399826412,1766705443351,-150.0,0.00016509,2]
[399826413,1766705443360,-150.0,0.00016511,2]
[399826414,1766705443370,-150.0,0.00016516,2]
[399826415,1766705443380,-150.0,0.00016533,2]
[399826416,1766705443390,-168.0,0.00016535,2]
[399826417,1766705443399,-150.0,0.00016542,2]
[399826418,1766705443409,-150.0,0.00016545,2]
[399826419,1766705443418,-337.0,0.00016547,2]
[399826420,1766705443428,-150.0,0.0001655,2]
[399826421,1766705443438,-150.0,0.00016562,2]
[399826422,1766705443448,-150.0,0.00016562,2]
[399826423,1766705443459,-150.0,0.00016562,2]
[399826424,1766705443469,-150.0,0.00016562,2]
[399826425,1766705443479,-265.27275218,0.00016564,2]
[399826426,1766705443488,-511.74539998,0.00016567,2]
[399826427,1766705443498,-150.0,0.00016568,2]
[399826428,1766705443508,-337.0,0.00016578,2]
[399826429,1766705443518,-150.0,0.00016579,2]
[399826430,1766705443528,-150.0,0.0001659,2]
[399826431,1766705443539,-150.0,0.00016594,2]
[399826432,1766705443549,-150.0,0.00016598,2]
[399826433,1766705443559,-337.0,0.00016601,2]
[399826434,1766705443569,-150.0,0.00016609,2]
[399826435,1766705443579,-150.0,0.00016613,2]
[399826436,1766705443588,-150.0,0.00016615,2]
[399826437,1766705443598,-150.0,0.0001662,2]
[399826438,1766705443607,-150.0,0.00016622,2]
[399826439,1766705443618,-293.15348985,0.00016639,2]
[399826440,1766705443628,-15583.19360633,0.00016641,2]
[399826441,1766705443638,-150.0,0.00016647,2]
[399826442,1766705443649,-150.0,0.00016647,2]
[399826443,1766705443659,-150.0,0.00016647,2]
[399826444,1766705443669,-150.0,0.00016647,2]
[399826445,1766705443679,-150.0,0.00016647,2]
[399826446,1766705443689,-2157.68256212,0.0001666,2]
[399826447,1766705443699,-150.0,0.00016668,2]
[399826448,1766705443710,-150.0,0.00016673,2]
[399826449,1766705443720,-150.0,0.00016681,2]
[399826450,1766705443730,-150.0,0.00016683,2]
[399826451,1766705443740,-150.0,0.00016695,2]
[399826452,1766705443750,-595.37131296,0.00016697,2]
[399826453,1766705443760,-150.0,0.00016699,2]
[399826454,1766705443770,-150.0,0.00016699,2]
[399826455,1766705443779,-272.46378967,0.00016699,2]
[399826456,1766705443789,-150.0,0.00016699,2]
[399826457,1766705443799,-500.0,0.00016699,2]
[399826459,1766705443810,-500.0,0.00016699,2]
[399826462,1766705443820,-150.0,0.00016699,2]
[399826465,1766705443831,-150.0,0.00016699,2]
[399826468,1766705443840,-150.0,0.00016699,2]
[399826471,1766705443850,-150.0,0.00016699,2]
[399826473,1766705443860,-500.0,0.00016699,2]
[399826474,1766705443870,-150.0,0.00016699,2]
[399826475,1766705443880,-150.0,0.00016699,2]
[399826476,1766705443890,-150.0,0.00016699,2]
[399826477,1766705443902,-150.0,0.00016703,2]
[399826478,1766705443911,-150.0,0.00016703,2]
[399826479,1766705443921,-150.0,0.00016703,2]
[399826480,1766705443931,-337.0,0.0001671,2]
[399826481,1766705443941,-4083.3,0.00016712,2]
[399826482,1766705443950,-150.0,0.00016715,2]
[399826483,1766705443960,-150.0,0.00016721,2]
[399826484,1766705443969,-150.0,0.00016725,2]
[399826485,1766705443979,-150.0,0.00016726,2]
[399826486,1766705443989,-150.0,0.00016726,2]
[399826487,1766705443998,-500.0,0.00016726,2]
[399826488,1766705444008,-500.0,0.00016726,2]
[399826489,1766705444018,-150.0,0.00016726,2]
[399826490,1766705444028,-150.0,0.00016726,2]
[399826491,1766705444039,-257.86837201,0.00016726,2]
[399826492,1766705444048,-150.0,0.00016726,2]
[399826493,1766705444058,-500.0,0.00016726,2]
[399826494,1766705444069,-150.0,0.00016726,2]
[399826495,1766705444079,-150.0,0.00016726,2]
[399826496,1766705444089,-740.93,0.00016731,2]
[399826497,1766705444099,-1000.0,0.00016731,2]
[399826498,1766705444111,-179.74469742,0.00016731,2]
[399826499,1766705444122,-500.0,0.00016731,2]
[399826500,1766705444132,-500.0,0.00016731,2]
[399826501,1766705444142,-1000.0,0.00016731,2]
[399826502,1766705444155,-912.90060705,0.00016731,2]
[399826503,1766705444164,-1000.0,0.00016731,2]
[399826504,1766705444174,-839.91585429,0.00016731,2]
[399826505,1766705444183,-1000.0,0.00016731,2]
[399826506,1766705444193,-1002.34200303,0.00016731,2]
[399826507,1766705444203,-1002.53802588,0.00016731,2]
[399826508,1766705444213,-501.16055069,0.00016731,2]
[399826509,1766705444223,-1000.0,0.00016731,2]
[399826510,1766705444233,-1077.35819012,0.00016731,2]
[399826511,1766705444244,-1137.52743212,0.00016731,2]
[399826512,1766705444254,-620.86010715,0.00016731,2]
[399826513,1766705444265,-693.74393665,0.00016731,2]
[399826514,1766705444275,-1000.0,0.00016731,2]
[399826515,1766705444284,-1000.0,0.00016731,2]
[399826516,1766705444294,-1000.0,0.00016731,2]
[399826517,1766705444303,-924.20807152,0.00016731,2]
[399826518,1766705444313,-1000.0,0.00016731,2]
[399826519,1766705444323,-500.61638625,0.00016731,2]
[399826520,1766705444334,-1000.0,0.00016731,2]
[399826521,1766705444344,-1000.0,0.00016731,2]
[399826522,1766705444354,-1001.32447433,0.00016731,2]
[399826523,1766705444363,-150.0,0.00016744,2]
[399826524,1766705444373,-150.0,0.00016744,2]
[399826525,1766705444383,-150.0,0.00016748,2]
[399826526,1766705444393,-150.0,0.00016751,2]
[399826527,1766705444404,-210.96312953,0.00016754,2]
[399826528,1766705444414,-150.0,0.00016754,2]
[399826529,1766705444423,-500.0,0.00016754,2]
[399826530,1766705444434,-500.0,0.00016754,2]
[399826531,1766705444444,-249.28059607,0.00016754,2]
[399826532,1766705444454,-150.0,0.00016754,2]
[399826533,1766705444463,-150.0,0.00016754,2]
[399826534,1766705444473,-283.35606072,0.00016754,2]
[399826535,1766705444482,-200.0,0.00016754,2]
[399826536,1766705444492,-150.0,0.00016754,2]
[399826537,1766705444501,-150.0,0.0001676,2]
[399826538,1766705444511,-150.0,0.00016774,2]
[399826539,1766705444520,-150.0,0.00016777,2]
[399826540,1766705444530,-150.0,0.00016781,2]
[399826541,1766705444539,-632.68005454,0.00016781,2]
[399826542,1766705444549,-500.0,0.00016781,2]
[399826543,1766705444558,-150.0,0.00016781,2]
[399826544,1766705444567,-150.0,0.00016781,2]
[399826545,1766705444577,-150.0,0.00016781,2]
[399826546,1766705444587,-150.0,0.00016782,2]
[399826547,1766705444596,-337.0,0.00016786,2]
[399826548,1766705444606,-150.0,0.00016792,2]
[399826549,1766705444615,-150.0,0.00016798,2]
[399826550,1766705444625,-150.0,0.00016803,2]
[399826551,1766705444635,-150.0,0.00016804,2]
[399826552,1766705444645,-224.03606775,0.00016809,2]
[399826553,1766705444655,-500.0,0.00016809,2]
[399826554,1766705444665,-150.0,0.00016809,2]
[399826555,1766705444675,-150.0,0.00016809,2]
[399826556,1766705444685,-150.0,0.00016809,2]
[399826557,1766705444695,-455.551,0.00016811,2]
[399826558,1766705444705,-1263.0,0.00016811,2]
[399826559,1766705444714,-1198.0,0.00016811,2]
[399826560,1766705444724,-912.0,0.00016811,2]
[399826561,1766705444735,-3459.0,0.00016811,2]
[399826562,1766705444745,-4807.0,0.00016811,2]
[399826563,1766705444755,-1330.033,0.00016811,2]
[399826564,1766705444766,-150.0,0.00016816,2]
[399826565,1766705444776,-150.0,0.00016816,2]
[399826566,1766705444785,-150.0,0.00016816,2]
[399826567,1766705444796,-433.0,0.00016824,2]
[399826568,1766705444806,-150.0,0.00016827,2]
[399826569,1766705444816,-150.0,0.0001683,2]
[399826570,1766705444826,-500.0,0.00016836,2]
[399826571,1766705444836,-175.36246307,0.00016836,2]
[399826572,1766705444846,-250.0,0.00016836,2]
[399826573,1766705444856,-174.90444461,0.00016836,2]
[399826574,1766705444866,-150.0,0.00016841,2]
[399826575,1766705444876,-168.0,0.00016844,2]
[399826576,1766705444887,-150.0,0.00016845,2]
[399826577,1766705444898,-150.0,0.0001685,2]
[399826578,1766705444908,-150.0,0.00016856,2]
[399826579,1766705444918,-594.24474848,0.00016863,2]
[399826580,1766705444928,-200.0,0.00016864,2]
[399826581,1766705444938,-150.0,0.00016865,2]
[399826582,1766705444949,-150.0,0.00016873,2]
[399826583,1766705444960,-150.0,0.0001688,2]
[399826584,1766705444970,-150.0,0.00016882,2]
[399826585,1766705444979,-150.0,0.00016884,2]
[399826586,1766705444989,-750.8446,0.00016886,2]
[399826587,1766705444999,-272.37,0.00016888,2]
[399826588,1766705445009,-150.0,0.00016889,2]
[399826589,1766705445021,-2141.13101448,0.000169,2]
[399826590,1766705445032,-881.45092358,0.000169,2]
[399826591,1766705445043,-511.74539998,0.000169,2]
[399826592,1766705445052,-15583.19360633,0.000169,2]
[399826593,1766705445063,-252.86139171,0.000169,2]
[399826594,1766705445073,-1066.23748014,0.000169,2]
[399826595,1766705445083,-150.0,0.00016908,2]
[399826596,1766705445095,-150.0,0.00016918,2]
[399826597,1766705445105,-1258.14,0.00016922,2]
[399826598,1766705445115,-168.0,0.00016923,2]
[399826599,1766705445124,-272.37,0.00016925,2]
[399826600,1766705445135,-150.0,0.00016926,2]
[399826601,1766705445145,-150.0,0.0001693,2]
[399826602,1766705445158,-150.0,0.00016933,2]
[399826603,1766705445168,-150.0,0.00016934,2]
[399826604,1766705445177,-150.0,0.00016938,2]
[399826605,1766705445187,-150.0,0.00016952,2]
[399826606,1766705445197,-1227.0,0.00016959,2]
[399826607,1766705445206,-229.0,0.00016959,2]
[399826608,1766705445216,-150.0,0.0001696,2]
[399826609,1766705445225,-272.37,0.00016963,2]
[399826610,1766705445234,-233.02301459,0.00016973,2]
[399826611,1766705445243,-150.0,0.00016973,2]
[399826612,1766705445253,-555.0466678,0.00016983,2]
[399826613,1766705445263,-4083.3,0.00016986,2]
[399826614,1766705445272,-150.0,0.00016986,2]
[399826615,1766705445282,-150.0,0.00016986,2]
[399826616,1766705445291,-150.0,0.00016986,2]
[399826617,1766705445301,-150.0,0.00016986,2]
[399826618,1766705445310,-150.0,0.00016986,2]
[399826619,1766705445320,-150.0,0.00016986,2]
[399826620,1766705445329,-150.0,0.00016986,2]
[399826621,1766705445338,-150.0,0.00016986,2]
[399826622,1766705445347,-150.0,0.00016986,2]
[399826623,1766705445356,-150.0,0.00016986,2]
[399826624,1766705445366,-150.0,0.00016986,2]
[399826625,1766705445375,-150.0,0.00016986,2]
[399826626,1766705445385,-592.70788689,0.0001699,2]
[399826627,1766705445394,-592.70788689,0.0001699,2]
[399826628,1766705445407,-1060.87558748,0.00016999,5]
[399826629,1766705445416,-155206.5042671,0.00016999,2]
[399826630,1766705445426,-9629.267106,0.00016999,2]
[399826631,1766705445435,-66598.0789304,0.00016999,2]
[399826632,1766705445444,-150.0,0.00016999,2]
[399826633,1766705445454,-4358.8533409,0.00016999,2]
[399826634,1766705445464,-300.0,0.00016999,2]
[399826635,1766705445473,-15370.1109139,0.00016999,2]
[399826636,1766705445483,-1460.4921426,0.00016999,2]
[399826637,1766705445493,-300.0,0.00016999,2]
[399826638,1766705445502,-151.0,0.00016999,2]
[399826639,1766705445511,-282.027559,0.00016999,2]
[399826640,1766705445521,-151.0,0.00016999,2]
[399826641,1766705445530,-153.869245,0.00016999,2]
[399826642,1766705445539,-165.856431,0.00016999,2]
[399826643,1766705445548,-153.869245,0.00016999,2]
[399826644,1766705445558,-165.856431,0.00016999,2]
[399826645,1766705445567,-153.869245,0.00016999,2]
[399826646,1766705445576,-4423182.35814058,0.00017,2]
[399826647,1766705445850,500.0,0.00032876,120]
[399826648,1766705445945,500.0,0.00032876,120]
[399826649,1766705446056,500.0,0.00032876,120]
[399826650,1766705446156,500.0,0.00032876,120]
[399826651,1766705446468,500.0,0.00032876,120]
[399826652,1766705446562,500.0,0.00032876,120]
[399826653,1766705446667,500.0,0.00032876,120]
[399826656,1766705446764,500.0,0.00032876,120]
[399826657,1766705446875,500.0,0.00032876,120]
[399826658,1766705446980,500.0,0.00032876,120]
[399826659,1766705447087,321.63321601,0.00032876,120]
[399826660,1766705447189,500.0,0.00032876,120]
[399826661,1766705447301,500.0,0.00032876,120]
[399826662,1766705447411,500.0,0.00032876,120]
[399826663,1766705447510,500.0,0.00032876,120]
[399826664,1766705447625,500.0,0.00032876,120]
[399826665,1766705447733,500.0,0.00032876,120]
[399826666,1766705447835,500.0,0.00032876,120]
[399826667,1766705447929,500.0,0.00032876,120]
[399826668,1766705448044,462.60096038,0.00032876,120]
[399826669,1766705448139,500.0,0.00032876,120]
[399826670,1766705448252,500.0,0.00032876,120]
[399826671,1766705448265,-9311.60790904,0.00015827,2]
[399826672,1766705448274,-153.869245,0.00016,2]
[399826673,1766705448284,-165.856431,0.00016438,2]
[399826674,1766705448293,-165.856431,0.00016438,2]
[399826675,1766705448302,-619.403,0.00016811,2]
[399826676,1766705448311,-165.856431,0.00016999,2]
[399826677,1766705448321,-153.869245,0.00016999,2]
[399826678,1766705448331,-165.856431,0.00016999,2]
[399826679,1766705448340,-5648.49828472,0.00017,2]
[399826680,1766705448351,-1467.37397329,0.00017,2]
[399826681,1766705448466,500.0,0.00032876,120]
[399826682,1766705448577,454.98224705,0.00032876,120]
[399826683,1766705448809,-305.75350123,0.00016041,2]
[399826684,1766705448824,-3306.89089297,0.00016041,2]
[399826685,1766705450815,543.5357391,0.00032876,120]
[399826686,1766705453945,530.31017152,0.00032876,120]
[399826687,1766705454783,500.0,0.00032876,120]
[399826688,1766705455021,500.0,0.00032876,120]
[399826689,1766705455259,500.0,0.00032876,120]
[399826690,1766705455500,500.0,0.00032876,120]
[399826691,1766705455741,500.0,0.00032876,120]
[399826692,1766705456060,500.0,0.00032876,120]
[399826693,1766705456205,500.0,0.00032876,120]
[399826694,1766705456426,347.02519046,0.00032876,120]
[399826695,1766705457745,500.0,0.00032876,120]
[399826696,1766705458015,500.0,0.00032876,120]
[399826697,1766705458250,500.0,0.00032876,120]
[399826698,1766705458478,500.0,0.00032876,120]
[399826699,1766705458714,500.0,0.00032876,120]
[399826700,1766705458948,516.93313617,0.00032876,120]
[399826701,1766705460502,500.0,0.00032876,120]
[399826702,1766705460729,473.98945213,0.00032876,120]
[399826703,1766705461720,500.0,0.00032876,120]
[399826704,1766705461971,500.0,0.00032876,120]
[399826705,1766705462224,500.0,0.00032876,120]
[399826706,1766705462736,457.85520295,0.00032876,120]
[399826707,1766705465875,500.0,0.00032876,120]
[399826708,1766705466281,500.0,0.00032876,120]
[399826709,1766705466390,500.0,0.00032876,120]
[399826710,1766705466568,500.0,0.00032876,120]
[399826711,1766705466803,500.0,0.00032876,120]
[399826712,1766705467063,500.0,0.00032876,120]
[399826713,1766705467304,500.0,0.00032876,120]
[399826714,1766705467908,500.0,0.00032876,120]
[399826715,1766705468171,500.0,0.00032876,120]
[399826716,1766705468416,500.0,0.00032876,120]
[399826717,1766705468650,500.0,0.00032876,120]
[399826718,1766705468887,414.92343913,0.00032876,120]
[399826719,1766705475925,500.0,0.00032876,120]
[399826720,1766705476178,500.0,0.00032876,120]
[399826721,1766705476540,500.0,0.00032876,120]